{"text_format":"1","workbook":"xlsx","n_sheets":2,"sheets":["2020 год","Лист3"],"not_rendered":{"charts":0,"images":0,"macros":1,"external_links":0,"defined_names":3,"comments":0,"pivot_tables":0},"unopened":[],"bounds":{"document_bytes":16777216,"sheet_cells":100000,"rows_first":2000,"rows_last":500,"rows_between":2000,"halvings":0,"cell_chars":16384,"cell_head_chars":4096},"cells_cut":0,"cells_raw":0,"read":"whole","date_system":"1900"}

{"sheet":"2020 год","index":0,"n_rows":175,"n_cols":8,"rows_kept":175,"cut":false,"hidden":false,"merged":[]}
["№","Дата","Адресат","Краткое содержание документа","Кем подписан","Исполнитель \nдокумента","Отметка об исполнении","Есть ли пустые ячейки"]
[1,null,null,null,null,null,null,{"$f":"IF(COUNTA($B$1:$G$1)<>COUNTA(B2:G2),\"Указаны не все данные\",\"Истина\")","v":"Указаны не все данные"}]
[2,null,null,null,null,null,null,{"$f":"IF(COUNTA($B$1:$G$1)<>COUNTA(B3:G3),\"Указаны не все данные\",\"Истина\")","v":"Указаны не все данные"}]
[3,null,null,null,null,null,null,{"$f":"IF(COUNTA($B$1:$G$1)<>COUNTA(B4:G4),\"Указаны не все данные\",\"Истина\")","v":"Указаны не все данные"}]
[4,null,null,null,null,null,null,{"$f":"IF(COUNTA($B$1:$G$1)<>COUNTA(B5:G5),\"Указаны не все данные\",\"Истина\")","v":"Указаны не все данные"}]
[5,null,null,null,null,null,null,{"$f":"IF(COUNTA($B$1:$G$1)<>COUNTA(B6:G6),\"Указаны не все данные\",\"Истина\")","v":"Указаны не все данные"}]
[6,null,null,null,null,null,null,{"$f":"IF(COUNTA($B$1:$G$1)<>COUNTA(B7:G7),\"Указаны не все данные\",\"Истина\")","v":"Указаны не все данные"}]
[7,null,null,null,null,null,null,{"$f":"IF(COUNTA($B$1:$G$1)<>COUNTA(B8:G8),\"Указаны не все данные\",\"Истина\")","v":"Указаны не все данные"}]
[8,null,null,null,null,null,null,{"$f":"IF(COUNTA($B$1:$G$1)<>COUNTA(B9:G9),\"Указаны не все данные\",\"Истина\")","v":"Указаны не все данные"}]
[9,null,null,null,null,null,null,{"$f":"IF(COUNTA($B$1:$G$1)<>COUNTA(B10:G10),\"Указаны не все данные\",\"Истина\")","v":"Указаны не все данные"}]
[10,null,null,null,null,null,null,{"$f":"IF(COUNTA($B$1:$G$1)<>COUNTA(B11:G11),\"Указаны не все данные\",\"Истина\")","v":"Указаны не все данные"}]
[11,null,null,null,null,null,null,{"$f":"IF(COUNTA($B$1:$G$1)<>COUNTA(B12:G12),\"Указаны не все данные\",\"Истина\")","v":"Указаны не все данные"}]
[12,null,null,null,null,null,null,{"$f":"IF(COUNTA($B$1:$G$1)<>COUNTA(B13:G13),\"Указаны не все данные\",\"Истина\")","v":"Указаны не все данные"}]
[13,null,null,null,null,null,null,{"$f":"IF(COUNTA($B$1:$G$1)<>COUNTA(B14:G14),\"Указаны не все данные\",\"Истина\")","v":"Указаны не все данные"}]
[14,null,null,null,null,null,null,{"$f":"IF(COUNTA($B$1:$G$1)<>COUNTA(B15:G15),\"Указаны не все данные\",\"Истина\")","v":"Указаны не все данные"}]
[15,null,null,null,null,null,null,{"$f":"IF(COUNTA($B$1:$G$1)<>COUNTA(B16:G16),\"Указаны не все данные\",\"Истина\")","v":"Указаны не все данные"}]
[16,null,null,null,null,null,null,{"$f":"IF(COUNTA($B$1:$G$1)<>COUNTA(B17:G17),\"Указаны не все данные\",\"Истина\")","v":"Указаны не все данные"}]
[17,null,null,null,null,null,null,{"$f":"IF(COUNTA($B$1:$G$1)<>COUNTA(B18:G18),\"Указаны не все данные\",\"Истина\")","v":"Указаны не все данные"}]
[18,null,null,null,null,null,null,{"$f":"IF(COUNTA($B$1:$G$1)<>COUNTA(B19:G19),\"Указаны не все данные\",\"Истина\")","v":"Указаны не все данные"}]
[19,null,null,null,null,null,null,{"$f":"IF(COUNTA($B$1:$G$1)<>COUNTA(B20:G20),\"Указаны не все данные\",\"Истина\")","v":"Указаны не все данные"}]
[20,null,null,null,null,null,null,{"$f":"IF(COUNTA($B$1:$G$1)<>COUNTA(B21:G21),\"Указаны не все данные\",\"Истина\")","v":"Указаны не все данные"}]
[21,null,null,null,null,null,null,{"$f":"IF(COUNTA($B$1:$G$1)<>COUNTA(B22:G22),\"Указаны не все данные\",\"Истина\")","v":"Указаны не все данные"}]
[22,null,null,null,null,null,null,{"$f":"IF(COUNTA($B$1:$G$1)<>COUNTA(B23:G23),\"Указаны не все данные\",\"Истина\")","v":"Указаны не все данные"}]
[23,null,null,null,null,null,null,{"$f":"IF(COUNTA($B$1:$G$1)<>COUNTA(B24:G24),\"Указаны не все данные\",\"Истина\")","v":"Указаны не все данные"}]
[24,null,null,null,null,null,null,{"$f":"IF(COUNTA($B$1:$G$1)<>COUNTA(B25:G25),\"Указаны не все данные\",\"Истина\")","v":"Указаны не все данные"}]
[25,null,null,null,null,null,null,{"$f":"IF(COUNTA($B$1:$G$1)<>COUNTA(B26:G26),\"Указаны не все данные\",\"Истина\")","v":"Указаны не все данные"}]
[26,null,null,null,null,null,null,{"$f":"IF(COUNTA($B$1:$G$1)<>COUNTA(B27:G27),\"Указаны не все данные\",\"Истина\")","v":"Указаны не все данные"}]
[27,null,null,null,null,null,null,{"$f":"IF(COUNTA($B$1:$G$1)<>COUNTA(B28:G28),\"Указаны не все данные\",\"Истина\")","v":"Указаны не все данные"}]
[28,null,null,null,null,null,null,{"$f":"IF(COUNTA($B$1:$G$1)<>COUNTA(B29:G29),\"Указаны не все данные\",\"Истина\")","v":"Указаны не все данные"}]
[29,null,null,null,null,null,null,{"$f":"IF(COUNTA($B$1:$G$1)<>COUNTA(B30:G30),\"Указаны не все данные\",\"Истина\")","v":"Указаны не все данные"}]
[30,null,null,null,null,null,null,{"$f":"IF(COUNTA($B$1:$G$1)<>COUNTA(B31:G31),\"Указаны не все данные\",\"Истина\")","v":"Указаны не все данные"}]
[31,null,null,null,null,null,null,{"$f":"IF(COUNTA($B$1:$G$1)<>COUNTA(B32:G32),\"Указаны не все данные\",\"Истина\")","v":"Указаны не все данные"}]
[32,null,null,null,null,null,null,{"$f":"IF(COUNTA($B$1:$G$1)<>COUNTA(B33:G33),\"Указаны не все данные\",\"Истина\")","v":"Указаны не все данные"}]
[33,null,null,null,null,null,null,{"$f":"IF(COUNTA($B$1:$G$1)<>COUNTA(B34:G34),\"Указаны не все данные\",\"Истина\")","v":"Указаны не все данные"}]
[34,null,null,null,null,null,null,{"$f":"IF(COUNTA($B$1:$G$1)<>COUNTA(B35:G35),\"Указаны не все данные\",\"Истина\")","v":"Указаны не все данные"}]
[35,null,null,null,null,null,null,{"$f":"IF(COUNTA($B$1:$G$1)<>COUNTA(B36:G36),\"Указаны не все данные\",\"Истина\")","v":"Указаны не все данные"}]
[36,null,null,null,null,null,null,{"$f":"IF(COUNTA($B$1:$G$1)<>COUNTA(B37:G37),\"Указаны не все данные\",\"Истина\")","v":"Указаны не все данные"}]
[37,null,null,null,null,null,null,{"$f":"IF(COUNTA($B$1:$G$1)<>COUNTA(B38:G38),\"Указаны не все данные\",\"Истина\")","v":"Указаны не все данные"}]
[38,null,null,null,null,null,null,{"$f":"IF(COUNTA($B$1:$G$1)<>COUNTA(B39:G39),\"Указаны не все данные\",\"Истина\")","v":"Указаны не все данные"}]
[39,null,null,null,null,null,null,{"$f":"IF(COUNTA($B$1:$G$1)<>COUNTA(B40:G40),\"Указаны не все данные\",\"Истина\")","v":"Указаны не все данные"}]
[40,null,null,null,null,null,null,{"$f":"IF(COUNTA($B$1:$G$1)<>COUNTA(B41:G41),\"Указаны не все данные\",\"Истина\")","v":"Указаны не все данные"}]
[41,null,null,null,null,null,null,{"$f":"IF(COUNTA($B$1:$G$1)<>COUNTA(B42:G42),\"Указаны не все данные\",\"Истина\")","v":"Указаны не все данные"}]
[42,null,null,null,null,null,null,{"$f":"IF(COUNTA($B$1:$G$1)<>COUNTA(B43:G43),\"Указаны не все данные\",\"Истина\")","v":"Указаны не все данные"}]
[43,null,null,null,null,null,null,{"$f":"IF(COUNTA($B$1:$G$1)<>COUNTA(B44:G44),\"Указаны не все данные\",\"Истина\")","v":"Указаны не все данные"}]
[44,null,null,null,null,null,null,{"$f":"IF(COUNTA($B$1:$G$1)<>COUNTA(B45:G45),\"Указаны не все данные\",\"Истина\")","v":"Указаны не все данные"}]
[45,null,null,null,null,null,null,{"$f":"IF(COUNTA($B$1:$G$1)<>COUNTA(B46:G46),\"Указаны не все данные\",\"Истина\")","v":"Указаны не все данные"}]
[46,null,null,null,null,null,null,{"$f":"IF(COUNTA($B$1:$G$1)<>COUNTA(B47:G47),\"Указаны не все данные\",\"Истина\")","v":"Указаны не все данные"}]
[47,null,null,null,null,null,null,{"$f":"IF(COUNTA($B$1:$G$1)<>COUNTA(B48:G48),\"Указаны не все данные\",\"Истина\")","v":"Указаны не все данные"}]
[48,null,null,null,null,null,null,{"$f":"IF(COUNTA($B$1:$G$1)<>COUNTA(B49:G49),\"Указаны не все данные\",\"Истина\")","v":"Указаны не все данные"}]
[49,null,null,null,null,null,null,{"$f":"IF(COUNTA($B$1:$G$1)<>COUNTA(B50:G50),\"Указаны не все данные\",\"Истина\")","v":"Указаны не все данные"}]
[50,null,null,null,null,null,null,{"$f":"IF(COUNTA($B$1:$G$1)<>COUNTA(B51:G51),\"Указаны не все данные\",\"Истина\")","v":"Указаны не все данные"}]
[51,null,null,null,null,null,null,{"$f":"IF(COUNTA($B$1:$G$1)<>COUNTA(B52:G52),\"Указаны не все данные\",\"Истина\")","v":"Указаны не все данные"}]
[52,null,null,null,null,null,null,{"$f":"IF(COUNTA($B$1:$G$1)<>COUNTA(B53:G53),\"Указаны не все данные\",\"Истина\")","v":"Указаны не все данные"}]
[53,null,null,null,null,null,null,{"$f":"IF(COUNTA($B$1:$G$1)<>COUNTA(B54:G54),\"Указаны не все данные\",\"Истина\")","v":"Указаны не все данные"}]
[54,null,null,null,null,null,null,{"$f":"IF(COUNTA($B$1:$G$1)<>COUNTA(B55:G55),\"Указаны не все данные\",\"Истина\")","v":"Указаны не все данные"}]
[55,null,null,null,null,null,null,{"$f":"IF(COUNTA($B$1:$G$1)<>COUNTA(B56:G56),\"Указаны не все данные\",\"Истина\")","v":"Указаны не все данные"}]
[56,null,null,null,null,null,null,{"$f":"IF(COUNTA($B$1:$G$1)<>COUNTA(B57:G57),\"Указаны не все данные\",\"Истина\")","v":"Указаны не все данные"}]
[57,null,null,null,null,null,null,{"$f":"IF(COUNTA($B$1:$G$1)<>COUNTA(B58:G58),\"Указаны не все данные\",\"Истина\")","v":"Указаны не все данные"}]
[58,null,null,null,null,null,null,{"$f":"IF(COUNTA($B$1:$G$1)<>COUNTA(B59:G59),\"Указаны не все данные\",\"Истина\")","v":"Указаны не все данные"}]
[59,null,null,null,null,null,null,{"$f":"IF(COUNTA($B$1:$G$1)<>COUNTA(B60:G60),\"Указаны не все данные\",\"Истина\")","v":"Указаны не все данные"}]
[60,null,null,null,null,null,null,{"$f":"IF(COUNTA($B$1:$G$1)<>COUNTA(B61:G61),\"Указаны не все данные\",\"Истина\")","v":"Указаны не все данные"}]
[61,null,null,null,null,null,null,{"$f":"IF(COUNTA($B$1:$G$1)<>COUNTA(B62:G62),\"Указаны не все данные\",\"Истина\")","v":"Указаны не все данные"}]
[62,null,null,null,null,null,null,{"$f":"IF(COUNTA($B$1:$G$1)<>COUNTA(B63:G63),\"Указаны не все данные\",\"Истина\")","v":"Указаны не все данные"}]
[63,null,null,null,null,null,null,{"$f":"IF(COUNTA($B$1:$G$1)<>COUNTA(B64:G64),\"Указаны не все данные\",\"Истина\")","v":"Указаны не все данные"}]
[64,null,null,null,null,null,null,{"$f":"IF(COUNTA($B$1:$G$1)<>COUNTA(B65:G65),\"Указаны не все данные\",\"Истина\")","v":"Указаны не все данные"}]
[65,null,null,null,null,null,null,{"$f":"IF(COUNTA($B$1:$G$1)<>COUNTA(B66:G66),\"Указаны не все данные\",\"Истина\")","v":"Указаны не все данные"}]
[66,null,null,null,null,null,null,{"$f":"IF(COUNTA($B$1:$G$1)<>COUNTA(B67:G67),\"Указаны не все данные\",\"Истина\")","v":"Указаны не все данные"}]
[67,null,null,null,null,null,null,{"$f":"IF(COUNTA($B$1:$G$1)<>COUNTA(B68:G68),\"Указаны не все данные\",\"Истина\")","v":"Указаны не все данные"}]
[68,null,null,null,null,null,null,{"$f":"IF(COUNTA($B$1:$G$1)<>COUNTA(B69:G69),\"Указаны не все данные\",\"Истина\")","v":"Указаны не все данные"}]
[69,null,null,null,null,null,null,{"$f":"IF(COUNTA($B$1:$G$1)<>COUNTA(B70:G70),\"Указаны не все данные\",\"Истина\")","v":"Указаны не все данные"}]
[70,null,null,null,null,null,null,{"$f":"IF(COUNTA($B$1:$G$1)<>COUNTA(B71:G71),\"Указаны не все данные\",\"Истина\")","v":"Указаны не все данные"}]
[71,null,null,null,null,null,null,{"$f":"IF(COUNTA($B$1:$G$1)<>COUNTA(B72:G72),\"Указаны не все данные\",\"Истина\")","v":"Указаны не все данные"}]
[72,null,null,null,null,null,null,{"$f":"IF(COUNTA($B$1:$G$1)<>COUNTA(B73:G73),\"Указаны не все данные\",\"Истина\")","v":"Указаны не все данные"}]
[73,null,null,null,null,null,null,{"$f":"IF(COUNTA($B$1:$G$1)<>COUNTA(B74:G74),\"Указаны не все данные\",\"Истина\")","v":"Указаны не все данные"}]
[74,null,null,null,null,null,null,{"$f":"IF(COUNTA($B$1:$G$1)<>COUNTA(B75:G75),\"Указаны не все данные\",\"Истина\")","v":"Указаны не все данные"}]
[75,null,null,null,null,null,null,{"$f":"IF(COUNTA($B$1:$G$1)<>COUNTA(B76:G76),\"Указаны не все данные\",\"Истина\")","v":"Указаны не все данные"}]
[76,null,null,null,null,null,null,{"$f":"IF(COUNTA($B$1:$G$1)<>COUNTA(B77:G77),\"Указаны не все данные\",\"Истина\")","v":"Указаны не все данные"}]
[77,null,null,null,null,null,null,{"$f":"IF(COUNTA($B$1:$G$1)<>COUNTA(B78:G78),\"Указаны не все данные\",\"Истина\")","v":"Указаны не все данные"}]
[78,null,null,null,null,null,null,{"$f":"IF(COUNTA($B$1:$G$1)<>COUNTA(B79:G79),\"Указаны не все данные\",\"Истина\")","v":"Указаны не все данные"}]
[79,null,null,null,null,null,null,{"$f":"IF(COUNTA($B$1:$G$1)<>COUNTA(B80:G80),\"Указаны не все данные\",\"Истина\")","v":"Указаны не все данные"}]
[80,null,null,null,null,null,null,{"$f":"IF(COUNTA($B$1:$G$1)<>COUNTA(B81:G81),\"Указаны не все данные\",\"Истина\")","v":"Указаны не все данные"}]
[81,null,null,null,null,null,null,{"$f":"IF(COUNTA($B$1:$G$1)<>COUNTA(B82:G82),\"Указаны не все данные\",\"Истина\")","v":"Указаны не все данные"}]
[82,null,null,null,null,null,null,{"$f":"IF(COUNTA($B$1:$G$1)<>COUNTA(B83:G83),\"Указаны не все данные\",\"Истина\")","v":"Указаны не все данные"}]
[83,null,null,null,null,null,null,{"$f":"IF(COUNTA($B$1:$G$1)<>COUNTA(B84:G84),\"Указаны не все данные\",\"Истина\")","v":"Указаны не все данные"}]
[84,null,null,null,null,null,null,{"$f":"IF(COUNTA($B$1:$G$1)<>COUNTA(B85:G85),\"Указаны не все данные\",\"Истина\")","v":"Указаны не все данные"}]
[85,null,null,null,null,null,null,{"$f":"IF(COUNTA($B$1:$G$1)<>COUNTA(B86:G86),\"Указаны не все данные\",\"Истина\")","v":"Указаны не все данные"}]
[86,null,null,null,null,null,null,{"$f":"IF(COUNTA($B$1:$G$1)<>COUNTA(B87:G87),\"Указаны не все данные\",\"Истина\")","v":"Указаны не все данные"}]
[87,null,null,null,null,null,null,{"$f":"IF(COUNTA($B$1:$G$1)<>COUNTA(B88:G88),\"Указаны не все данные\",\"Истина\")","v":"Указаны не все данные"}]
[88,null,null,null,null,null,null,{"$f":"IF(COUNTA($B$1:$G$1)<>COUNTA(B89:G89),\"Указаны не все данные\",\"Истина\")","v":"Указаны не все данные"}]
[89,null,null,null,null,null,null,{"$f":"IF(COUNTA($B$1:$G$1)<>COUNTA(B90:G90),\"Указаны не все данные\",\"Истина\")","v":"Указаны не все данные"}]
[90,null,null,null,null,null,null,{"$f":"IF(COUNTA($B$1:$G$1)<>COUNTA(B91:G91),\"Указаны не все данные\",\"Истина\")","v":"Указаны не все данные"}]
[91,null,null,null,null,null,null,{"$f":"IF(COUNTA($B$1:$G$1)<>COUNTA(B92:G92),\"Указаны не все данные\",\"Истина\")","v":"Указаны не все данные"}]
[92,null,null,null,null,null,null,{"$f":"IF(COUNTA($B$1:$G$1)<>COUNTA(B93:G93),\"Указаны не все данные\",\"Истина\")","v":"Указаны не все данные"}]
[93,null,null,null,null,null,null,{"$f":"IF(COUNTA($B$1:$G$1)<>COUNTA(B94:G94),\"Указаны не все данные\",\"Истина\")","v":"Указаны не все данные"}]
[94,null,null,null,null,null,null,{"$f":"IF(COUNTA($B$1:$G$1)<>COUNTA(B95:G95),\"Указаны не все данные\",\"Истина\")","v":"Указаны не все данные"}]
[95,null,null,null,null,null,null,{"$f":"IF(COUNTA($B$1:$G$1)<>COUNTA(B96:G96),\"Указаны не все данные\",\"Истина\")","v":"Указаны не все данные"}]
[96,null,null,null,null,null,null,{"$f":"IF(COUNTA($B$1:$G$1)<>COUNTA(B97:G97),\"Указаны не все данные\",\"Истина\")","v":"Указаны не все данные"}]
[97,null,null,null,null,null,null,{"$f":"IF(COUNTA($B$1:$G$1)<>COUNTA(B98:G98),\"Указаны не все данные\",\"Истина\")","v":"Указаны не все данные"}]
[98,null,null,null,null,null,null,{"$f":"IF(COUNTA($B$1:$G$1)<>COUNTA(B99:G99),\"Указаны не все данные\",\"Истина\")","v":"Указаны не все данные"}]
[99,null,null,null,null,null,null,{"$f":"IF(COUNTA($B$1:$G$1)<>COUNTA(B100:G100),\"Указаны не все данные\",\"Истина\")","v":"Указаны не все данные"}]
[100,null,null,null,null,null,null,{"$f":"IF(COUNTA($B$1:$G$1)<>COUNTA(B101:G101),\"Указаны не все данные\",\"Истина\")","v":"Указаны не все данные"}]
[101,null,null,null,null,null,null,{"$f":"IF(COUNTA($B$1:$G$1)<>COUNTA(B102:G102),\"Указаны не все данные\",\"Истина\")","v":"Указаны не все данные"}]
[102,null,null,null,null,null,null,{"$f":"IF(COUNTA($B$1:$G$1)<>COUNTA(B103:G103),\"Указаны не все данные\",\"Истина\")","v":"Указаны не все данные"}]
[103,null,null,null,null,null,null,{"$f":"IF(COUNTA($B$1:$G$1)<>COUNTA(B104:G104),\"Указаны не все данные\",\"Истина\")","v":"Указаны не все данные"}]
[104,null,null,null,null,null,null,{"$f":"IF(COUNTA($B$1:$G$1)<>COUNTA(B105:G105),\"Указаны не все данные\",\"Истина\")","v":"Указаны не все данные"}]
[105,null,null,null,null,null,null,{"$f":"IF(COUNTA($B$1:$G$1)<>COUNTA(B106:G106),\"Указаны не все данные\",\"Истина\")","v":"Указаны не все данные"}]
[106,null,null,null,null,null,null,{"$f":"IF(COUNTA($B$1:$G$1)<>COUNTA(B107:G107),\"Указаны не все данные\",\"Истина\")","v":"Указаны не все данные"}]
[107,null,null,null,null,null,null,{"$f":"IF(COUNTA($B$1:$G$1)<>COUNTA(B108:G108),\"Указаны не все данные\",\"Истина\")","v":"Указаны не все данные"}]
[108,null,null,null,null,null,null,{"$f":"IF(COUNTA($B$1:$G$1)<>COUNTA(B109:G109),\"Указаны не все данные\",\"Истина\")","v":"Указаны не все данные"}]
[109,null,null,null,null,null,null,{"$f":"IF(COUNTA($B$1:$G$1)<>COUNTA(B110:G110),\"Указаны не все данные\",\"Истина\")","v":"Указаны не все данные"}]
[110,null,null,null,null,null,null,{"$f":"IF(COUNTA($B$1:$G$1)<>COUNTA(B111:G111),\"Указаны не все данные\",\"Истина\")","v":"Указаны не все данные"}]
[111,null,null,null,null,null,null,{"$f":"IF(COUNTA($B$1:$G$1)<>COUNTA(B112:G112),\"Указаны не все данные\",\"Истина\")","v":"Указаны не все данные"}]
[112,null,null,null,null,null,null,{"$f":"IF(COUNTA($B$1:$G$1)<>COUNTA(B113:G113),\"Указаны не все данные\",\"Истина\")","v":"Указаны не все данные"}]
[113,null,null,null,null,null,null,{"$f":"IF(COUNTA($B$1:$G$1)<>COUNTA(B114:G114),\"Указаны не все данные\",\"Истина\")","v":"Указаны не все данные"}]
[114,null,null,null,null,null,null,{"$f":"IF(COUNTA($B$1:$G$1)<>COUNTA(B115:G115),\"Указаны не все данные\",\"Истина\")","v":"Указаны не все данные"}]
[115,null,null,null,null,null,null,{"$f":"IF(COUNTA($B$1:$G$1)<>COUNTA(B116:G116),\"Указаны не все данные\",\"Истина\")","v":"Указаны не все данные"}]
[116,null,null,null,null,null,null,{"$f":"IF(COUNTA($B$1:$G$1)<>COUNTA(B117:G117),\"Указаны не все данные\",\"Истина\")","v":"Указаны не все данные"}]
[117,null,null,null,null,null,null,{"$f":"IF(COUNTA($B$1:$G$1)<>COUNTA(B118:G118),\"Указаны не все данные\",\"Истина\")","v":"Указаны не все данные"}]
[118,null,null,null,null,null,null,{"$f":"IF(COUNTA($B$1:$G$1)<>COUNTA(B119:G119),\"Указаны не все данные\",\"Истина\")","v":"Указаны не все данные"}]
[119,null,null,null,null,null,null,{"$f":"IF(COUNTA($B$1:$G$1)<>COUNTA(B120:G120),\"Указаны не все данные\",\"Истина\")","v":"Указаны не все данные"}]
[120,null,null,null,null,null,null,{"$f":"IF(COUNTA($B$1:$G$1)<>COUNTA(B121:G121),\"Указаны не все данные\",\"Истина\")","v":"Указаны не все данные"}]
[121,null,null,null,null,null,null,{"$f":"IF(COUNTA($B$1:$G$1)<>COUNTA(B122:G122),\"Указаны не все данные\",\"Истина\")","v":"Указаны не все данные"}]
[122,null,null,null,null,null,null,{"$f":"IF(COUNTA($B$1:$G$1)<>COUNTA(B123:G123),\"Указаны не все данные\",\"Истина\")","v":"Указаны не все данные"}]
[123,null,null,null,null,null,null,{"$f":"IF(COUNTA($B$1:$G$1)<>COUNTA(B124:G124),\"Указаны не все данные\",\"Истина\")","v":"Указаны не все данные"}]
[124,null,null,null,null,null,null,{"$f":"IF(COUNTA($B$1:$G$1)<>COUNTA(B125:G125),\"Указаны не все данные\",\"Истина\")","v":"Указаны не все данные"}]
[125,null,null,null,null,null,null,{"$f":"IF(COUNTA($B$1:$G$1)<>COUNTA(B126:G126),\"Указаны не все данные\",\"Истина\")","v":"Указаны не все данные"}]
[126,null,null,null,null,null,null,{"$f":"IF(COUNTA($B$1:$G$1)<>COUNTA(B127:G127),\"Указаны не все данные\",\"Истина\")","v":"Указаны не все данные"}]
[127,null,null,null,null,null,null,{"$f":"IF(COUNTA($B$1:$G$1)<>COUNTA(B128:G128),\"Указаны не все данные\",\"Истина\")","v":"Указаны не все данные"}]
[128,null,null,null,null,null,null,{"$f":"IF(COUNTA($B$1:$G$1)<>COUNTA(B129:G129),\"Указаны не все данные\",\"Истина\")","v":"Указаны не все данные"}]
[129,null,null,null,null,null,null,{"$f":"IF(COUNTA($B$1:$G$1)<>COUNTA(B130:G130),\"Указаны не все данные\",\"Истина\")","v":"Указаны не все данные"}]
[130,null,null,null,null,null,null,{"$f":"IF(COUNTA($B$1:$G$1)<>COUNTA(B131:G131),\"Указаны не все данные\",\"Истина\")","v":"Указаны не все данные"}]
[131,null,null,null,null,null,null,{"$f":"IF(COUNTA($B$1:$G$1)<>COUNTA(B132:G132),\"Указаны не все данные\",\"Истина\")","v":"Указаны не все данные"}]
[132,null,null,null,null,null,null,{"$f":"IF(COUNTA($B$1:$G$1)<>COUNTA(B133:G133),\"Указаны не все данные\",\"Истина\")","v":"Указаны не все данные"}]
[133,null,null,null,null,null,null,{"$f":"IF(COUNTA($B$1:$G$1)<>COUNTA(B134:G134),\"Указаны не все данные\",\"Истина\")","v":"Указаны не все данные"}]
[134,null,null,null,null,null,null,{"$f":"IF(COUNTA($B$1:$G$1)<>COUNTA(B135:G135),\"Указаны не все данные\",\"Истина\")","v":"Указаны не все данные"}]
[135,null,null,null,null,null,null,{"$f":"IF(COUNTA($B$1:$G$1)<>COUNTA(B136:G136),\"Указаны не все данные\",\"Истина\")","v":"Указаны не все данные"}]
[136,null,null,null,null,null,null,{"$f":"IF(COUNTA($B$1:$G$1)<>COUNTA(B137:G137),\"Указаны не все данные\",\"Истина\")","v":"Указаны не все данные"}]
[137,null,null,null,null,null,null,{"$f":"IF(COUNTA($B$1:$G$1)<>COUNTA(B138:G138),\"Указаны не все данные\",\"Истина\")","v":"Указаны не все данные"}]
[138,null,null,null,null,null,null,{"$f":"IF(COUNTA($B$1:$G$1)<>COUNTA(B139:G139),\"Указаны не все данные\",\"Истина\")","v":"Указаны не все данные"}]
[139,null,null,null,null,null,null,{"$f":"IF(COUNTA($B$1:$G$1)<>COUNTA(B140:G140),\"Указаны не все данные\",\"Истина\")","v":"Указаны не все данные"}]
[140,null,null,null,null,null,null,{"$f":"IF(COUNTA($B$1:$G$1)<>COUNTA(B141:G141),\"Указаны не все данные\",\"Истина\")","v":"Указаны не все данные"}]
[141,null,null,null,null,null,null,{"$f":"IF(COUNTA($B$1:$G$1)<>COUNTA(B142:G142),\"Указаны не все данные\",\"Истина\")","v":"Указаны не все данные"}]
[142,null,null,null,null,null,null,{"$f":"IF(COUNTA($B$1:$G$1)<>COUNTA(B143:G143),\"Указаны не все данные\",\"Истина\")","v":"Указаны не все данные"}]
[143,null,null,null,null,null,null,{"$f":"IF(COUNTA($B$1:$G$1)<>COUNTA(B144:G144),\"Указаны не все данные\",\"Истина\")","v":"Указаны не все данные"}]
[144,null,null,null,null,null,null,{"$f":"IF(COUNTA($B$1:$G$1)<>COUNTA(B145:G145),\"Указаны не все данные\",\"Истина\")","v":"Указаны не все данные"}]
[145,null,null,null,null,null,null,{"$f":"IF(COUNTA($B$1:$G$1)<>COUNTA(B146:G146),\"Указаны не все данные\",\"Истина\")","v":"Указаны не все данные"}]
[146,null,null,null,null,null,null,{"$f":"IF(COUNTA($B$1:$G$1)<>COUNTA(B147:G147),\"Указаны не все данные\",\"Истина\")","v":"Указаны не все данные"}]
[147,null,null,null,null,null,null,{"$f":"IF(COUNTA($B$1:$G$1)<>COUNTA(B148:G148),\"Указаны не все данные\",\"Истина\")","v":"Указаны не все данные"}]
[148,null,null,null,null,null,null,{"$f":"IF(COUNTA($B$1:$G$1)<>COUNTA(B149:G149),\"Указаны не все данные\",\"Истина\")","v":"Указаны не все данные"}]
[149,null,null,null,null,null,null,{"$f":"IF(COUNTA($B$1:$G$1)<>COUNTA(B150:G150),\"Указаны не все данные\",\"Истина\")","v":"Указаны не все данные"}]
[150,null,null,null,null,null,null,{"$f":"IF(COUNTA($B$1:$G$1)<>COUNTA(B151:G151),\"Указаны не все данные\",\"Истина\")","v":"Указаны не все данные"}]
[151,null,null,null,null,null,null,{"$f":"IF(COUNTA($B$1:$G$1)<>COUNTA(B152:G152),\"Указаны не все данные\",\"Истина\")","v":"Указаны не все данные"}]
[152,null,null,null,null,null,null,{"$f":"IF(COUNTA($B$1:$G$1)<>COUNTA(B153:G153),\"Указаны не все данные\",\"Истина\")","v":"Указаны не все данные"}]
[153,null,null,null,null,null,null,{"$f":"IF(COUNTA($B$1:$G$1)<>COUNTA(B154:G154),\"Указаны не все данные\",\"Истина\")","v":"Указаны не все данные"}]
[154,null,null,null,null,null,null,{"$f":"IF(COUNTA($B$1:$G$1)<>COUNTA(B155:G155),\"Указаны не все данные\",\"Истина\")","v":"Указаны не все данные"}]
[155,null,null,null,null,null,null,{"$f":"IF(COUNTA($B$1:$G$1)<>COUNTA(B156:G156),\"Указаны не все данные\",\"Истина\")","v":"Указаны не все данные"}]
[156,null,null,null,null,null,null,{"$f":"IF(COUNTA($B$1:$G$1)<>COUNTA(B157:G157),\"Указаны не все данные\",\"Истина\")","v":"Указаны не все данные"}]
[157,null,null,null,null,null,null,{"$f":"IF(COUNTA($B$1:$G$1)<>COUNTA(B158:G158),\"Указаны не все данные\",\"Истина\")","v":"Указаны не все данные"}]
[158,null,null,null,null,null,null,{"$f":"IF(COUNTA($B$1:$G$1)<>COUNTA(B159:G159),\"Указаны не все данные\",\"Истина\")","v":"Указаны не все данные"}]
[159,null,null,null,null,null,null,{"$f":"IF(COUNTA($B$1:$G$1)<>COUNTA(B160:G160),\"Указаны не все данные\",\"Истина\")","v":"Указаны не все данные"}]
[160,null,null,null,null,null,null,{"$f":"IF(COUNTA($B$1:$G$1)<>COUNTA(B161:G161),\"Указаны не все данные\",\"Истина\")","v":"Указаны не все данные"}]
[161,null,null,null,null,null,null,{"$f":"IF(COUNTA($B$1:$G$1)<>COUNTA(B162:G162),\"Указаны не все данные\",\"Истина\")","v":"Указаны не все данные"}]
[162,null,null,null,null,null,null,{"$f":"IF(COUNTA($B$1:$G$1)<>COUNTA(B163:G163),\"Указаны не все данные\",\"Истина\")","v":"Указаны не все данные"}]
[163,null,null,null,null,null,null,{"$f":"IF(COUNTA($B$1:$G$1)<>COUNTA(B164:G164),\"Указаны не все данные\",\"Истина\")","v":"Указаны не все данные"}]
[164,null,null,null,null,null,null,{"$f":"IF(COUNTA($B$1:$G$1)<>COUNTA(B165:G165),\"Указаны не все данные\",\"Истина\")","v":"Указаны не все данные"}]
[165,null,null,null,null,null,null,{"$f":"IF(COUNTA($B$1:$G$1)<>COUNTA(B166:G166),\"Указаны не все данные\",\"Истина\")","v":"Указаны не все данные"}]
[166,null,null,null,null,null,null,{"$f":"IF(COUNTA($B$1:$G$1)<>COUNTA(B167:G167),\"Указаны не все данные\",\"Истина\")","v":"Указаны не все данные"}]
[167,null,null,null,null,null,null,{"$f":"IF(COUNTA($B$1:$G$1)<>COUNTA(B168:G168),\"Указаны не все данные\",\"Истина\")","v":"Указаны не все данные"}]
[168,null,null,null,null,null,null,{"$f":"IF(COUNTA($B$1:$G$1)<>COUNTA(B169:G169),\"Указаны не все данные\",\"Истина\")","v":"Указаны не все данные"}]
[169,null,null,null,null,null,null,{"$f":"IF(COUNTA($B$1:$G$1)<>COUNTA(B170:G170),\"Указаны не все данные\",\"Истина\")","v":"Указаны не все данные"}]
[170,null,null,null,null,null,null,{"$f":"IF(COUNTA($B$1:$G$1)<>COUNTA(B171:G171),\"Указаны не все данные\",\"Истина\")","v":"Указаны не все данные"}]
[171,null,null,null,null,null,null,{"$f":"IF(COUNTA($B$1:$G$1)<>COUNTA(B172:G172),\"Указаны не все данные\",\"Истина\")","v":"Указаны не все данные"}]
[172,null,null,null,null,null,null,{"$f":"IF(COUNTA($B$1:$G$1)<>COUNTA(B173:G173),\"Указаны не все данные\",\"Истина\")","v":"Указаны не все данные"}]
[173,null,null,null,null,null,null,{"$f":"IF(COUNTA($B$1:$G$1)<>COUNTA(B174:G174),\"Указаны не все данные\",\"Истина\")","v":"Указаны не все данные"}]
[174,null,null,null,null,null,null,{"$f":"IF(COUNTA($B$1:$G$1)<>COUNTA(B175:G175),\"Указаны не все данные\",\"Истина\")","v":"Указаны не все данные"}]

{"sheet":"Лист3","index":1,"n_rows":0,"n_cols":0,"rows_kept":0,"cut":false,"hidden":false,"merged":[]}